Cogmind - Beta 13 @@@ ROGUE MODE // 2024.06.10 @ 23:18:06 Player: Selene Result: Destroyed by Y-45 Defender with Beam Rifle Performance ------------- Evolutions (0) 0 Regions Visited (3) 600 Robots Destroyed (37) 185 Value Destroyed (632) 632 Prototype IDs (9) 180 Alien Tech Used (0) 0 Bonus (0) 0 TOTAL SCORE: 1597 Bonus ------- None Cogmind --------- Core Integrity 0/250 Matter 300/300 Energy 170/170 System Corruption 0% Temperature Cool (9) Movement Rolling (106) Location -9/Recycling Parts ------- > --- POWER (1) -------- Scrap-Nuclear Engine > --- PROPULSION (2) --- Wheeled Compact-Scrap Exoskeleton > --- UTILITY (2) ------ Armored Scrap Engine > --- WEAPON (2) ------- Kinetic Assault Construct/G > --- INVENTORY (5) ---- Structural Scanner Seismic Detector Improved Targeting Computer Light Armor Plating Peak State ------------ > --- POWER ------------ Scrap-Nuclear Engine > --- PROPULSION ------- Wheeled Compact-Scrap Exoskeleton > --- UTILITY ---------- Armored Scrap Engine > --- WEAPON ----------- Kinetic Assault Construct/G Shotgun EM Assault Construct/G > --- INVENTORY -------- Structural Scanner Seismic Detector Light Armor Plating EM Pulse Gun Beam Cannon [Rating: 30] Favorites ----------- Power Ion Engine Engine Ion Engine Power Core Light Nuclear Core Propulsion Aluminum Leg Treads Light Treads Leg Aluminum Leg Wheel Constructs Utility Small Storage Unit Device Seismic Detector Storage Small Storage Unit Weapon Medium Laser Energy Gun Medium Laser Ballistic Gun Battle Rifle Build | -11 -10 -10 -9 ------- Run | Yrd Mat Sub Rec Slots Evolved . | . . . . Power . | . . . . Propulsion . | . . . . Utility . | . . . . Weapon . | . . . . Parts Attached 26 | 7 7 10 2 Power 5 | 1 1 3 . Engine 4 | 1 1 2 . Core 1 | . . 1 . Reactor . | . . . . Propulsion 11 | 2 5 3 1 Treads 3 | . 3 . . Leg 5 | . 2 2 1 Wheel 3 | 2 . 1 . Hover . | . . . . Flight . | . . . . Utility 3 | 2 . . 1 Device 2 | 1 . . 1 Storage 1 | 1 . . . Processor . | . . . . Hackware . | . . . . Protection . | . . . . Artifact . | . . . . Weapon 7 | 2 1 4 . Energy Gun 3 | 1 1 1 . Energy Cannon . | . . . . Ballistic Gun 4 | 1 . 3 . Ballistic Cannon . | . . . . Launcher . | . . . . Special Weapon . | . . . . Impact Weapon . | . . . . Slashing Weapon . | . . . . Piercing Weapon . | . . . . Special Melee Weapon . | . . . . Unidentified Prototypes . | . . . . Parts Lost 3 | . 1 1 1 Power 1 | . . 1 . Propulsion . | . . . . Utility . | . . . . Weapon 2 | . 1 . 1 Highest Loss Streak 1 | . 1 1 1 To Critical Strikes . | . . . . Average Slot Usage (%) 89 | . 99 100 67 Engine 11 | . 14 8 10 Core 2 | . . 5 2 Treads 3 | . 9 . . Leg 14 | . 14 28 2 Wheel 5 | . 3 . 12 Device 14 | . 14 14 14 Storage 9 | . 14 14 . Energy Gun 14 | . 25 14 3 Ballistic Gun 11 | . 2 13 19 Naked Turns . | . . . . Heaviest Build 17 | 15 16 17 13 Greatest Support 40 | 32 40 20 20 Greatest Overweight (x) 3 | . . 1 3 Average Overweight (x) . | . . . . Largest Inventory Capacity 8 | 8 8 8 8 Average Capacity 7 | 7 8 8 5 Most Carried 8 | 8 8 8 7 Average Carried 6 | 5 7 7 4 Final Capacity 8 | 8 8 8 5 Final Carried 8 | 8 8 8 4 Scrap Engine Consumption 48 | . . . 48 Constructs Created 4 | . . . 4 Constructs Modified 7 | . . . 7 Class Distribution -------------------- 62% | Mutant 28% | Construct 8% | Scavenger-Mutant Dominant Class ---------------- Mutant | -10/Materials Mutant | -10/Subcaves Construct | -9/Recycling Resources | -11 -10 -10 -9 ----------- Run | Yrd Mat Sub Rec Matter Collected 971 | 285 113 223 350 Remotely . | . . . . Salvage Created 2375 | 49 294 370 1662 Parts 82 | 6 18 12 46 Haulers Intercepted 1 | . 1 . . Recyclers Shooed 6 | . . . 6 Parts Field Recycled . | . . . . Retrieved Matter . | . . . . Parts Self-Destructed 13 | . . 13 . Prevented . | . . . . Kills | -11 -10 -10 -9 ------- Run | Yrd Mat Sub Rec Combat Hostiles Destroyed 16 | . 8 6 2 Guns 16 | . 8 6 2 Classes Destroyed 10 | 1 5 2 2 Builder 2 | . 1 . 1 Tunneler 3 | 3 . . . Hauler 1 | . 1 . . Recycler 11 | . . . 11 Turret 2 | . . 2 . Watcher 2 | . 2 . . Swarmer 8 | . 6 2 . Grunt 2 | . 2 . . Sentry 2 | . . . 2 Subdweller 4 | . . 4 . Best Kill Streak 3 | 2 3 2 3 Combat Bots Only 3 | . 3 2 1 Max Kills in Single Turn 1 | 1 1 1 1 Gunslinging . | . . . . Exploded . | . . . . Melee . | . . . . Uniques/NPCs Destroyed . | . . . . Combat | -11 -10 -10 -9 -------- Run | Yrd Mat Sub Rec Hostile Shots Fired 180 | . 63 90 27 Missed 68 | . 17 44 7 Damage Taken 1197 | . 427 481 289 Core 262 | . 91 113 58 Absorbed by Shields . | . . . . Core Remaining (%) 100 | 100 . . . Volleys Fired 165 | 5 33 46 81 Largest 2 | 2 2 2 2 Hottest 115 | 70 115 110 63 Shots Fired 297 | 10 65 91 131 Gun 290 | 10 65 91 124 Cannon 7 | . . . 7 Launcher . | . . . . Special . | . . . . Kinetic 177 | 5 16 45 111 Thermal 107 | 5 49 46 7 Explosive . | . . . . Electromagnetic 13 | . . . 13 Robot Hit Streak 14 | 3 13 14 11 Robot Miss Streak 5 | 1 5 3 3 Penetration Max . | . . . . Secondary Targets 1 | . . 1 . Max Gunslinging Chain 1 | . . 1 . Shots Hit Robots 205 | 7 40 67 91 Core Hits 66 | 3 15 19 29 Critical Kills 1 | . . 1 . Critical Parts Destroyed . | . . . . Critical Strikes 5 | . 1 4 . Burn 4 | . 1 3 . Destroy 1 | . . 1 . Melee Attacks . | . . . . Impact . | . . . . Slashing . | . . . . Piercing . | . . . . Sneak Attacks . | . . . . Combat Hostiles . | . . . . Follow-up Attacks . | . . . . Damage Inflicted 3290 | 82 529 1121 1558 Guns 3236 | 82 529 1121 1504 Cannons 54 | . . . 54 Explosions . | . . . . Melee . | . . . . Ramming . | . . . . Kinetic 2085 | 46 135 551 1353 Thermal 1054 | 36 394 570 54 Explosive . | . . . . Electromagnetic 151 | . . . 151 Impact . | . . . . Slashing . | . . . . Piercing . | . . . . Highest Corruption . | . . . . Average Corruption . | . . . . Corruption Purged . | . . . . Corruption Blocked . | . . . . Overload Shots . | . . . . Overflow Damage . | . . . . Projectiles . | . . . . Explosions . | . . . . Melee . | . . . . Knockbacks . | . . . . Impact . | . . . . Kinetic . | . . . . Secondary . | . . . . Self-Inflicted Damage . | . . . . Shots . | . . . . Rammed . | . . . . Targets Rammed . | . . . . Kicked . | . . . . Crushed . | . . . . Highest Temperature 243 | 27 216 243 83 Average Temperature 42 | 11 63 74 18 Received Heat Transfer 803 | . 93 620 90 Siege Activations . | . . . . Robots Corrupted . | . . . . Combat Hostiles . | . . . . Parts Fried . | . . . . Impact Corruptions . | . . . . Robots Melted . | . . . . Combat Hostiles . | . . . . Parts Melted 9 | . 5 3 1 Heat Transferred 2609 | 111 1184 1203 111 Parts Sabotaged . | . . . . Parts Stolen . | . . . . Parts Stripped . | . . . . Power Chain Reactions . | . . . . Alert | -11 -10 -10 -9 ------- Run | Yrd Mat Sub Rec Peak Influence 304 | 15 304 . 164 Initial 102 | . 9 . 102 Average 82 | 3 108 . 59 Maximum Alert Level 1 | . 1 . . Low Security (%) 93 | 100 86 . 100 Level 1 6 | . 13 . . Level 2 . | . . . . Level 3 . | . . . . Level 4 . | . . . . Level 5 . | . . . . High Security . | . . . . Max Security . | . . . . Squads Dispatched 1 | . 1 . . Investigation . | . . . . Extermination . | . . . . Reinforcement 1 | . 1 . . Assault . | . . . . Garrison . | . . . . Intercept . | . . . . Searches Triggered . | . . . . Construction Impeded . | . . . . Haulers Reinforced . | . . . . Active Scanning Responses . | . . . . Cargo Convoy Interrupts . | . . . . Stealth | -11 -10 -10 -9 --------- Run | Yrd Mat Sub Rec Distress Signals 2 | . 2 . . Communications Jammed . | . . . . Distress Signals . | . . . . Times Spotted 48 | . 19 26 3 Peak Tracking Total 5 | . 4 5 2 Tactical Retreats 8 | . 3 5 . Traps | -11 -10 -10 -9 ------- Run | Yrd Mat Sub Rec Traps Triggered 1 | . . 1 . Indirectly . | . . . . Trap Hack Attempts . | . . . . Triggered . | . . . . Disarmed . | . . . . Reprogrammed . | . . . . Reused 1 | . . 1 . Traps Extracted . | . . . . Installed 1 | . . 1 . Triggered 1 | . . 1 . Most Traps Carried 1 | . . 1 . Machines | -11 -10 -10 -9 ---------- Run | Yrd Mat Sub Rec Machines Disabled 4 | . 3 1 . Max in Single Turn 1 | . 1 1 . Machines Repaired . | . . . . Machines Dismantled . | . . . . Machines Sabotaged . | . . . . Overloaded Fab Kills . | . . . . Hacking | -11 -10 -10 -9 --------- Run | Yrd Mat Sub Rec Machines Accessed 10 | . 5 . 5 Terminals 7 | . 4 . 3 Fabricators . | . . . . Repair Stations . | . . . . Recycling Units 3 | . 1 . 2 Scanalyzers . | . . . . Garrison Access . | . . . . Total Hacks 30 | . 16 . 14 Successful 14 | . 8 . 6 Failed 16 | . 8 . 8 Catastrophic 2 | . . . 2 Database Lockouts . | . . . . Manual 18 | . 9 . 9 Terminals 22 | . 14 . 8 Fabricators . | . . . . Repair Stations . | . . . . Recycling Units 8 | . 2 . 6 Scanalyzers . | . . . . Garrison Access . | . . . . Terminal Hacks 6 | . 5 . 1 Prototype ID Bank 3 | . 2 . 1 Terminal Index 1 | . 1 . . Transport Status 1 | . 1 . . Registered Components 1 | . 1 . . Fabricator Hacks . | . . . . Repair Station Hacks . | . . . . Recycling Unit Hacks 2 | . . . 2 Retrieve Components 2 | . . . 2 Scanalyzer . | . . . . Garrison Access Hacks . | . . . . Unauthorized Hacks 6 | . 3 . 3 Terminals 3 | . 2 . 1 Botnet 3 | . 2 . 1 Fabricators . | . . . . Repair Stations . | . . . . Recycling Units 3 | . 1 . 2 Reject 3 | . 1 . 2 Scanalyzers . | . . . . Garrison Access . | . . . . Data Cores Recovered . | . . . . Used . | . . . . Hacking Detections 9 | . 5 . 4 Full Trace Events . | . . . . Feedback Events . | . . . . Feedback Blocked . | . . . . Robot Schematics Acquired . | . . . . Robots Built . | . . . . Authchips . | . . . . Time . | . . . . Total Robot Build Rating . | . . . . Part Schematics Acquired . | . . . . Parts Built . | . . . . Authchips . | . . . . Time . | . . . . Total Part Build Rating . | . . . . Parts Repaired . | . . . . Time . | . . . . Parts Recycled . | . . . . Recycled Matter . | . . . . Retrieved Matter . | . . . . Retrieved Components 4 | . . . 4 Parts Scanalyzed . | . . . . Part Schematics Acquired . | . . . . Parts Damaged . | . . . . Bothacking | -11 -10 -10 -9 ------------ Run | Yrd Mat Sub Rec Used RIF Installer . | . . . . Robots Hacked . | . . . . Non-combat . | . . . . Combat . | . . . . Robot Hacks Applied . | . . . . Relay Couplers Released . | . . . . Fabnet Peak Effective % . | . . . . Robots Rewired . | . . . . Allies Hacked . | . . . . Hacks Repelled . | . . . . Allies | -11 -10 -10 -9 -------- Run | Yrd Mat Sub Rec Total Allies . | . . . . Largest Group . | . . . . Highest-Rated Group . | . . . . Highest-Rated Ally . | . . . . Total Orders . | . . . . Ally Attacks . | . . . . Total Damage . | . . . . Kills . | . . . . Allies Corrupted . | . . . . Allies Melted . | . . . . Intel | -11 -10 -10 -9 ------- Run | Yrd Mat Sub Rec Robot Analysis Total . | . . . . Derelict Logs Recovered 1 | . . 1 . Drone Launches . | . . . . Drone Recoveries . | . . . . Exploration | -11 -10 -10 -9 ------------- Run | Yrd Mat Sub Rec Turns Passed 3884 | 82 1349 1215 1238 Spaces Moved 2622 | 48 862 832 880 Core 36 | 5 . . 31 Treads 215 | . 215 . . Legs 1378 | . 490 832 56 Wheels 993 | 43 157 . 793 Hover . | . . . . Flight . | . . . . Fastest Speed 50 | 50 100 120 106 Average Speed 117 | 94 126 120 108 Slowest Speed 200 | 100 160 190 200 Overloaded Moves . | . . . . Propulsion Burnouts . | . . . . Robots Hopped . | . . . . Cave-ins Triggered . | . . . . Exploration Rate (%) 41 | 3 57 33 72 Regions Visited 3 Branch Regions 2 Pre-discovered Areas 1 | . . 1 . Known Exits Taken . | . . . . Unknown Exits Taken 3 | 1 1 1 . Scrap Searched 1 | . . 1 . Spaces Dug . | . . . . Terrain Destroyed 6 | . . 1 5 Melee . | . . . . Projectile 6 | . . 1 5 AOE . | . . . . Terrain Rammed . | . . . . Walls Destroyed . | . . . . Machines Disabled . | . . . . Actions | -11 -10 -10 -9 --------- Run | Yrd Mat Sub Rec Total 3129 | 72 1060 961 1036 Wait 246 | 2 142 48 54 Move 2619 | 47 861 831 880 Hop . | . . . . Pick Up 29 | 10 8 8 3 Fast Attach 15 | 6 . 8 1 Attach 5 | 1 3 1 . Detach 3 | . . 2 1 Swap 6 | . 4 1 1 Drop 39 | 1 9 15 14 Fire 165 | 5 33 46 81 Melee . | . . . . Ram . | . . . . Kick . | . . . . Crush . | . . . . Escape Stasis . | . . . . Rewire 1 | . . . 1 Trap 1 | . . 1 . Miscellaneous . | . . . . Route ------- -11/Scrapyard -10/Materials (discovered 3 exits: [*Mat x2] / [*Sub]) -10/Subcaves (discovered 3 exits: [*Mat x2] / *Rec) -9/Recycling History --------- Turn | Location | Event 51 | -11/Scrapyard | Discovered new exit (range 15) 83 | -11/Scrapyard | Entered Materials 293 | -10/Materials | Discovered new exit (range 16) 315 | -10/Materials | Build established: Mutant 543 | -10/Materials | Discovered new exit (range 13) 681 | -10/Materials | Build established: Scavenger-Mutant 1006 | -10/Materials | Build established: Mutant 1175 | -10/Materials | Discovered new exit (range 10) 1432 | -10/Materials | Entered Subcaves 1464 | -10/Subcaves | Discovered new exit (range 7) 1683 | -10/Subcaves | Learned location of Zion (-7) 1683 | -10/Subcaves | Met a Zionite searching for "candidates" 1704 | -10/Subcaves | Discovered new exit (range 9) 1875 | -10/Subcaves | Discovered new exit (range 15) 1918 | -10/Subcaves | Ambushed by Subdwellers from Twisted Machinery 1992 | -10/Subcaves | Core integrity fell below 50% 2069 | -10/Subcaves | Learned Materials garrison access intel 2602 | -10/Subcaves | Core integrity fell below 20% 2647 | -10/Subcaves | Entered Recycling 2650 | -9/Recycling | Found Scrap Engine 3069 | -9/Recycling | Build established: Construct 3885 | -9/Recycling | Destroyed by Y-45 Defender with Beam Rifle Last Messages --------------- Engine. 03796_ R-06 Scavenger collects Com. Wheel. 03797_ Acquired 15 matter. 03799_ Acquired 5 matter. 03799_ R-06 Scavenger collects Heat Sink. 03802_ Acquired 5 matter. 03816_ R-06 Scavenger destroyed. 03819_ Acquired 10 matter. 03837_ Y-45 Defender springs to life. 03857_ Acquired 5 matter. 03869_ Shotgun EM Assault Construct/G destroyed. 03869_ Arm. Scrap Engine damaged due to network destabilization (-7). 03872_ Acquired 3 matter. 03877_ Destroyed Lgt. Armor Plating. 03878_ Acquired 3 matter. 03878_ Y-45 Defender IFF system glitched. 03880_ Acquired 3 matter. 03883_ Y-45 Defender destroyed. 03884_ Acquired 3 matter. Map ----- +----------------------------------------------------+ | ???????????## #?????# #?# | | ????????????# #?????# #?# | | ????????????##############?????# #?# | | ????????????????????#####??????# #?# | | ????????????????????#! #??????# #?# | | ???????????????????## !!##############+######## | | ???????????????????# | | ???????????????????# % | | ???????????????????# !!! | | ???????????????????######+####%#######!! """"" | | ???????????????????# # #???#""|! """"" | | ???????????????????# # #???#"Y!!! """"" | | ???????????????????# # #???#""!! """"" | | ???????????????????# # #???###! | | ???????????????????# # #?????# | | ???????????????????# # #######+###### | | ???????????????????# # # # | | ???????????????????# !# # """ """ + | | ???????????????????#########%# # """ """ ## | | ????????????????##?# #???### # """ """ ## | | ????##+########## ## #######u# ## | | ??? # """ """ ## | | ??? + """ """ ## | | ??? *! # """ """ + | | ????????## ###############Y##### % ## | | ???????????????????# @%! #?# % ## | | ???????????????????# #?# ## | | ???????????????????# #?# ## | | ???????????????????# #?#####"T"####### | | ???????????????????# #?????#####?????# | | ??????????????????## #????????########+## | | ??????????????????#% #????????# # | | ??????????????????## #????????# # | | ???????????????????###########????????# # | | ?????????????????????????????????????## + | | ?????????????????????????????????????#%!! # | | ?????????????????????????????????????##!%! # | | ??????????????????????????????????????# # | | ??????????????????????????????????????# # | | ??????????????????????????????????????####%###### | | ?????????????????????????????????????????###????## | | ?????????????????????????????????????????????????? | | ?????????????????????????????????????????????????? | | ?????????????????????????????????????????????????? | | ?????????????????????????????????????????????????? | | ?????????????????????????????????????????????????? | | ?????????????????????????????????????????????????? | | ?????????????????????????????????????????????????? | | ?????????????????????????????????????????????????? | | | +----------------------------------------------------+ Best States ------------- Heat Dissipation 25 Energy Generation 15 Energy Capacity 250 Matter Stores 300 Matter Capacity 300 Sight Range 16 Terrain Scan Density 10 Evasion (%) 55 Recoil Reduction 2 Item Schematics ----------------- None Robot Schematics ------------------ None Fabricated ------------ Nothing Alien Tech Used ----------------- None Achievements -------------- None Challenges ------------ None Game ------ Seed StorageSlugChainsword Manual? 0 Play Time 00:41:11 Cumulative 76.5 hours Start 2024.06.09 @ 19:04:04 End 2024.06.10 @ 23:18:06 Sessions 6 Manual Loads 0 Difficulty Rogue Special Mode None Game No. 45 Rogue 42 Adventurer 3 Explorer 0 Win Type - Total 2 Types 2/0/0/0/0/0/0/0/0 Lore% 38 Gallery% 46 Achievement% 37 Wizard Run 0 Options --------- Layout 1 ASCII 0 Keyboard 1 Movement Vi Keybinds 1 Fullscreen 2 Font 24/Smallcaps Map View 50x35 Zoom Use 0% Tactical HUD 1 Map Filters NONE Filters NONE Steam 1 RUN: 5c595d78-6869-4695-a327-5b1e429ff290